lending/lending_fUSD_20240120
["ID","MTS","AMOUNT","RATE_DAILY","PERIOD"]
[312280574,1705739445803,-346.6941844,0.00024655,2]
[312280575,1705739445863,-348.77523253,0.00024655,2]
[312280576,1705739445875,-677.90149026,0.00024655,2]
[312280577,1705739445887,-1446.84122965,0.00024655,2]
[312280578,1705739445900,-625.16379959,0.00024655,2]
[312280579,1705739445910,-257.83758004,0.00024655,4]
[312280580,1705739445920,-628.85599997,0.00024656,2]
[312280581,1705739445928,-500.0,0.00024657,2]
[312280582,1705739445938,-4017.28419592,0.00024657,2]
[312280583,1705739445947,-291.41637742,0.00024657,2]
[312280584,1705739445957,-500.0,0.00024657,2]
[312280585,1705739445967,-500.0,0.00024657,2]
[312280586,1705739445976,-500.0,0.00024657,2]
[312280587,1705739445987,-500.0,0.00024657,2]
[312280588,1705739445996,-500.0,0.00024657,2]
[312280589,1705739446005,-549.92,0.00024657,2]
[312280590,1705739446015,-500.0,0.00024657,2]
[312280591,1705739446026,-457.15237668,0.00024657,2]
[312280592,1705739446035,-500.0,0.00024657,2]
[312280593,1705739446046,-500.0,0.00024657,2]
[312280594,1705739446057,-500.0,0.00024657,2]
[312280595,1705739446067,-467.8292198,0.00024657,2]
[312280596,1705739446081,-32.1707802,0.00024657,2]
[312280597,1705739446090,-495.75225609,0.00024657,2]
[312280598,1705739446102,-4.24774391,0.00024657,2]
[312280599,1705739446112,-502.5645168,0.00024657,2]
[312280600,1705739446121,-396.65245099,0.00024657,2]
[312280601,1705739446131,-500.0,0.00024657,2]
[312280602,1705739446140,-418.10396413,0.00024657,2]
[312280603,1705739446150,-500.0,0.00024657,2]
[312280604,1705739446160,-34.70477178,0.00024657,2]
[312280605,1705739446175,-598.53195578,0.00024657,2]
[312280606,1705739446184,-165.79317393,0.00024657,2]
[312280607,1705739446194,-500.0,0.00024657,2]
[312280608,1705739446203,-500.0,0.00024657,2]
[312280609,1705739446212,-500.0,0.00024657,2]
[312280610,1705739446222,-500.0,0.00024657,2]
[312280611,1705739446231,-500.0,0.00024657,2]
[312280612,1705739446240,-500.0,0.00024657,2]
[312280613,1705739446249,-517.56843389,0.00024657,2]
[312280614,1705739446259,-500.0,0.00024657,2]
[312280615,1705739446269,-541.13,0.00024657,2]
[312280616,1705739446278,-299.42030584,0.00024657,2]
[312280617,1705739446295,-233.10246632,0.00024657,2]
[312280618,1705739446304,-28.03053368,0.00024657,2]
[312280619,1705739446316,-471.96946632,0.00024657,2]
[312280620,1705739446325,-500.0,0.00024657,2]
[312280621,1705739446334,-506.37,0.00024657,2]
[312280622,1705739446343,-622.73149542,0.00024657,2]
[312280623,1705739446353,-183.9898141,0.00024657,2]
[312280624,1705739446378,-316.0101859,0.00024657,2]
[312280625,1705739446388,-358.78410983,0.00024657,2]
[312280626,1705739446402,-141.21589017,0.00024657,2]
[312280627,1705739446411,-500.0,0.00024657,2]
[312280628,1705739446421,-500.0,0.00024657,2]
[312280629,1705739446432,-350.10208828,0.00024657,2]
[312280630,1705739446445,-149.89791172,0.00024657,2]
[312280631,1705739446454,-500.0,0.00024657,2]
[312280632,1705739446464,-141.75735249,0.00024657,2]
[312280633,1705739446478,-358.24264751,0.00024657,2]
[312280634,1705739446488,-564.54152105,0.00024657,2]
[312280635,1705739446497,-500.0,0.00024657,2]
[312280636,1705739446507,-500.0,0.00024657,2]
[312280637,1705739446516,-159.34599376,0.00024657,2]
[312280638,1705739446526,-500.0,0.00024657,2]
[312280639,1705739446536,-500.0,0.00024657,2]
[312280640,1705739446545,-417.86983768,0.00024657,2]
[312280641,1705739446558,-82.13016232,0.00024657,2]
[312280642,1705739446569,-349.75483768,0.00024657,2]
[312280643,1705739446599,-150.24516232,0.00024657,2]
[312280644,1705739446608,-484.60784036,0.00024657,2]
[312280645,1705740202200,545.36,0.00020637,2]
[312280646,1705740364367,204.0,0.00020513,2]
[312280651,1705740630040,535.67,0.00020087,2]
[312280678,1705740631996,-3060.50973781,0.00021293,2]
[312280684,1705740632053,-131.23149238,0.00021293,2]
[312280686,1705740632062,-410.0144265,0.00021294,2]
[312280688,1705740632076,-114.18388366,0.00021294,2]
[312280690,1705740632085,-150.81611644,0.00021294,2]
[312280691,1705740632110,-893.61466298,0.00021294,2]
[312280692,1705740632121,-18.91458298,0.00021295,2]
[312280693,1705740632132,-146.41593813,0.00021295,2]
[312280694,1705740632141,-624.52767715,0.00021393,2]
[312280695,1705740632151,-840.0,0.00021996,2]
[312280696,1705740632160,-250.0,0.00021996,2]
[312280697,1705740632170,-337.4,0.00022005,2]
[312280698,1705740632179,-174.71,0.00022019,2]
[312280699,1705740632188,-159.68,0.00022164,2]
[312280700,1705740632197,-162.58742787,0.00022256,2]
[312280701,1705740632212,-165.3305211,0.00022256,2]
[312280702,1705740632223,-300.0,0.00022258,2]
[312280703,1705740632233,-23890.0,0.00022259,2]
[312280704,1705740632242,-535.67,0.00022351,2]
[312280705,1705740632252,-169.74,0.00022356,10]
[312280706,1705740632262,-1515.85152636,0.0002245,2]
[312280707,1705740632274,-484.14847364,0.0002245,2]
[312280708,1705740632284,-264.76110085,0.0002245,2]
[312280709,1705740632301,-642.71889915,0.0002245,2]
[312280710,1705740632310,-250.0,0.00022526,2]
[312280711,1705740632319,-161.81,0.00022526,2]
[312280712,1705740632329,-231.21,0.00022555,2]
[312280713,1705740632338,-499.99,0.00022555,2]
[312280714,1705740632347,-160.0,0.00022583,2]
[312280715,1705740632356,-162.58742783,0.00022624,2]
[312280716,1705740632366,-292.49167064,0.0002266,4]
[312280717,1705740632376,-150.0,0.0002266,2]
[312280718,1705740632385,-150.0,0.0002266,2]
[312280719,1705740632394,-150.0,0.0002266,2]
[312280720,1705740632404,-150.0,0.0002266,2]
[312280721,1705740632413,-150.0,0.0002266,2]
[312280722,1705740632423,-49.86854812,0.0002266,2]
[312280723,1705740632435,-232.96957657,0.0002266,2]
[312280724,1705740632445,-150.0,0.0002266,2]
[312280725,1705740632456,-150.0,0.0002266,2]
[312280726,1705740632466,-150.0,0.0002266,2]
[312280727,1705740632476,-51.87140687,0.00022686,4]
[312280728,1705740632488,-240.62026377,0.00022686,4]
[312280729,1705740632498,-150.0,0.00022698,4]
[312280730,1705740632509,-292.49167064,0.00022711,4]
[312280731,1705740632517,-49.90752745,0.00022735,4]
[312280732,1705740632556,-100.09247255,0.00022735,4]
[312280733,1705740632565,-292.49167064,0.00022737,4]
[312280734,1705740632575,-150.0,0.0002275,4]
[312280735,1705740632586,-157.74,0.00022752,2]
[312280736,1705740632596,-150.0,0.00022761,4]
[312280737,1705740632606,-292.49167064,0.00022762,4]
[312280738,1705740632616,-150.0,0.0002277,4]
[312280739,1705740632625,-150.0,0.00022773,4]
[312280740,1705740632635,-292.49167064,0.00022787,4]
[312280741,1705740632644,-155.45737211,0.000228,2]
[312280742,1705740632653,-150.0,0.00022811,4]
[312280743,1705740632662,-292.49167064,0.00022813,4]
[312280744,1705740632671,-359.9762,0.00022822,10]
[312280745,1705740632681,-150.0,0.00022828,4]
[312280746,1705740632690,-292.49167064,0.00022838,4]
[312280747,1705740632700,-150.0,0.0002284,4]
[312280748,1705740632709,-150.0,0.00022848,4]
[312280749,1705740632718,-150.0,0.00022862,4]
[312280750,1705740632727,-292.49167064,0.00022864,4]
[312280751,1705740632737,-150.0,0.00022879,4]
[312280752,1705740632746,-150.0,0.00022886,4]
[312280753,1705740632755,-292.49167064,0.00022889,4]
[312280754,1705740632765,-169.74,0.00022903,10]
[312280755,1705740632774,-161.81,0.00022913,2]
[312280756,1705740632783,-292.49167064,0.00022915,4]
[312280757,1705740632793,-150.0,0.00022923,4]
[312280758,1705740632802,-150.0,0.0002293,4]
[312280759,1705740632812,-274.30697373,0.0002294,4]
[312280760,1705740632824,-18.18469691,0.0002294,4]
[312280761,1705740632833,-150.0,0.0002294,4]
[312280762,1705740632842,-150.0,0.00022961,4]
[312280763,1705740632853,-150.0,0.00022962,4]
[312280764,1705740632862,-292.49167064,0.00022965,4]
[312280765,1705740632871,-150.0,0.00022989,4]
[312280766,1705740632880,-292.49167064,0.00022991,4]
[312280767,1705740632890,-162.58742783,0.00022992,2]
[312280768,1705740632900,-150.0,0.00022996,4]
[312280769,1705740632908,-150.0,0.00022998,4]
[312280770,1705740632918,-292.49167064,0.00023016,4]
[312280771,1705740632930,-150.0,0.0002302,4]
[312280772,1705740632940,-150.0,0.00023036,4]
[312280773,1705740632949,-292.49167064,0.00023042,4]
[312280774,1705740632959,-150.0,0.00023063,4]
[312280775,1705740632968,-13.04111167,0.00023067,4]
[312280776,1705740632980,-279.45055897,0.00023067,4]
[312280777,1705740632990,-150.0,0.00023074,4]
[312280778,1705740632999,-214.11240409,0.00023093,4]
[312280779,1705740633012,-78.37926655,0.00023093,4]
[312280780,1705740633022,-150.0,0.00023098,4]
[312280781,1705740633035,-150.0,0.0002311,4]
[312280782,1705740633046,-150.0,0.00023111,4]
[312280783,1705740633056,-292.49167064,0.00023118,4]
[312280784,1705740633067,-292.49167064,0.00023143,4]
[312280785,1705740633078,-150.0,0.00023149,4]
[312280786,1705740633087,-150.0,0.00023164,4]
[312280787,1705740633096,-150.0,0.00023164,4]
[312280788,1705740633107,-168.54366365,0.00023169,4]
[312280802,1705740637951,-123.94800699,0.00023169,4]
[312280803,1705740637961,-150.0,0.00023186,4]
[312280804,1705740637972,-292.49167064,0.00023194,4]
[312280805,1705740637981,-150.0,0.000232,4]
[312280806,1705740637991,-150.0,0.00023208,4]
[312280807,1705740638001,-292.49167064,0.0002322,4]
[312280808,1705740638010,-150.0,0.0002322,4]
[312280809,1705740638020,-150.0,0.00023224,4]
[312280810,1705740638032,-292.49167064,0.00023245,4]
[312280811,1705740638043,-150.0,0.00023262,4]
[312280812,1705740638052,-150.0,0.00023265,4]
[312280813,1705740638061,-292.49167064,0.00023271,4]
[312280814,1705740638070,-150.0,0.0002329,4]
[312280815,1705740638080,-292.49167064,0.00023296,4]
[312280816,1705740638089,-161.81,0.00023299,2]
[312280817,1705740638098,-150.0,0.00023299,4]
[312280818,1705740638107,-165.61,0.000233,2]
[312280819,1705740638118,-150.0,0.00023317,4]
[312280820,1705740638128,-292.49167064,0.00023322,4]
[312280821,1705740638137,-150.0,0.00023332,4]
[312280822,1705740638146,-150.0,0.00023337,4]
[312280823,1705740638155,-292.49167064,0.00023347,4]
[312280824,1705740638165,-162.58742783,0.0002336,2]
[312280825,1705740638174,-150.0,0.00023365,4]
[312280826,1705740638184,-292.49167064,0.00023372,4]
[312280827,1705740638193,-150.0,0.00023374,4]
[312280828,1705740638202,-150.0,0.0002338,4]
[312280829,1705740638213,-292.49167064,0.00023398,4]
[312280830,1705740638223,-298.23,0.00023403,2]
[312280837,1705740638446,-150.0,0.00023412,4]
[312280840,1705740638456,-1469.06981636,0.00023422,7]
[312280842,1705740638465,-292.49167064,0.00023423,4]
[312280844,1705740638474,-150.0,0.00023427,4]
[312280846,1705740638483,-205.59,0.00023434,2]
[312280848,1705740638492,-165.61,0.00023447,2]
[312280850,1705740638501,-292.49167064,0.00023449,4]
[312280852,1705740638511,-150.0,0.00023449,4]
[312280854,1705740638519,-169.74,0.00023451,10]
[312280856,1705740638528,-150.0,0.00023466,4]
[312280858,1705740638537,-150.0,0.0002347,4]
[312280860,1705740638547,-292.49167064,0.00023474,4]
[312280862,1705740638555,-150.0,0.00023487,4]
[312280864,1705740638564,-292.49167064,0.000235,4]
[312280866,1705740638573,-150.0,0.000235,4]
[312280868,1705740638583,-150.0,0.000235,4]
[312280869,1705740638592,-518.32067458,0.00023512,2]
[312280871,1705740638601,-758.57178046,0.00023514,2]
[312280872,1705740638610,-3060.62837074,0.00023514,2]
[312280874,1705740638619,-248.55625965,0.00023514,2]
[312280876,1705740638628,-12240.31559135,0.00023514,2]
[312280877,1705740638637,-1045.04040933,0.00023514,2]
[312280879,1705740638646,-11524.10629793,0.00023514,2]
[312280881,1705740638655,-243.39006042,0.00023515,2]
[312280882,1705740638663,-1720.60315528,0.00023515,2]
[312280884,1705740638672,-150.0,0.00023525,4]
[312280886,1705740638683,-292.49167064,0.00023525,4]
[312280887,1705740638691,-150.0,0.00023536,4]
[312280889,1705740638701,-292.49167064,0.0002355,4]
[312280891,1705740638710,-150.0,0.00023559,4]
[312280892,1705740638718,-150.0,0.00023562,4]
[312280894,1705740638728,-150.0,0.00023567,4]
[312280896,1705740638736,-292.49167064,0.00023576,4]
[312280897,1705740638745,-152.73,0.00023589,2]
[312280899,1705740638754,-165.61,0.00023594,2]
[312280901,1705740638763,-150.0,0.000236,4]
[312280903,1705740638773,-292.49167064,0.00023601,4]
[312280904,1705740638782,-292.49167064,0.00023627,4]
[312280906,1705740638792,-150.0,0.00023637,4]
[312280908,1705740638801,-150.0,0.00023646,4]
[312280909,1705740638810,-150.0,0.00023649,4]
[312280911,1705740638819,-292.49167064,0.00023652,4]
[312280913,1705740638829,-350.99,0.00023657,2]
[312280915,1705740638838,-157.2,0.00023666,2]
[312280916,1705740638847,-150.0,0.00023667,4]
[312280918,1705740638856,-150.0,0.00023667,4]
[312280920,1705740638866,-150.0,0.00023675,4]
[312280922,1705740638875,-292.49167064,0.00023678,4]
[312280923,1705740638884,-231.21,0.00023682,2]
[312280925,1705740638895,-161.81,0.00023685,2]
[312280927,1705740638904,-292.49167064,0.00023703,4]
[312280929,1705740638913,-150.0,0.00023712,4]
[312280930,1705740638922,-162.58742783,0.00023727,2]
[312280932,1705740638932,-292.49167064,0.00023728,4]
[312280933,1705740638941,-150.0,0.00023739,4]
[312280935,1705740638949,-165.61,0.00023741,2]
[312280937,1705740638958,-150.0,0.0002375,4]
[312280938,1705740638967,-292.49167064,0.00023754,4]
[312280940,1705740638976,-150.0,0.00023755,4]
[312280942,1705740638985,-150.0,0.00023768,4]
[312280944,1705740638995,-292.49167064,0.00023779,4]
[312280946,1705740639004,-150.0,0.00023779,4]
[312280948,1705740639013,-150.0,0.00023788,4]
[312280949,1705740639024,-292.49167064,0.00023805,4]
[312280951,1705740639035,-150.0,0.00023825,4]
[312280953,1705740639044,-150.0,0.00023829,4]
[312280955,1705740639052,-292.49167064,0.0002383,4]
[312280957,1705740639061,-150.0,0.00023835,4]
[312280958,1705740639072,-292.49167064,0.00023856,4]
[312280960,1705740639081,-150.0,0.00023863,4]
[312280962,1705740639091,-150.0,0.00023864,4]
[312280964,1705740639103,-150.0,0.00023869,4]
[312280966,1705740639112,-292.49167064,0.00023881,4]
[312280967,1705740639121,-165.61,0.00023888,2]
[312280969,1705740639130,-150.0,0.000239,4]
[312280971,1705740639139,-292.49167064,0.00023906,4]
[312280973,1705740639148,-150.0,0.00023919,4]
[312280974,1705740639156,-150.0,0.00023919,4]
[312280976,1705740639165,-501.99093569,0.00023922,2]
[312280978,1705740639174,-292.49167064,0.00023932,4]
[312280980,1705740639184,-3248.10043173,0.00023936,2]
[312280982,1705740639194,-150.0,0.00023938,4]
[312280983,1705740639203,-292.49167064,0.00023957,4]
[312280985,1705740639212,-150.0,0.0002397,4]
[312280987,1705740639221,-150.0,0.00023974,4]
[312280989,1705740639230,-150.0,0.00023976,4]
[312280991,1705740639239,-292.49167064,0.00023983,4]
[312280992,1705740639248,-203.65293434,0.0002399,2]
[312280994,1705740639257,-169.74,0.00023999,10]
[312280996,1705740639266,-225.75903559,0.00023999,3]
[312280998,1705740639274,-350.88,0.00023999,2]
[312280999,1705740639283,-505905.04796851,0.00024,2]
[312281001,1705740639293,-150.0,0.00024003,4]
[312281003,1705740639299,-292.49167064,0.00024008,4]
[312281005,1705740639307,-150.0,0.00024009,4]
[312281006,1705740639314,-150.0,0.00024013,4]
[312281008,1705740639322,-292.49167064,0.00024034,4]
[312281010,1705740639328,-165.61,0.00024036,2]
[312281012,1705740639336,-150.0,0.00024051,4]
[312281013,1705740639344,-292.49167064,0.00024059,4]
[312281015,1705740639351,-150.0,0.00024059,4]
[312281017,1705740639360,-150.0,0.0002407,4]
[312281019,1705740639368,-161.81,0.00024071,2]
[312281021,1705740639375,-150.0,0.00024083,4]
[312281023,1705740639382,-292.49167064,0.00024084,4]
[312281024,1705740639390,-150.0,0.00024088,4]
[312281026,1705740639396,-907.48,0.00024093,2]
[312281028,1705740639405,-162.58742783,0.00024095,2]
[312281030,1705740639413,-150.0,0.00024099,4]
[312281031,1705740639419,-292.49167064,0.0002411,4]
[312281033,1705740639425,-150.0,0.00024126,4]
[312281035,1705740639433,-292.49167064,0.00024135,4]
[312281037,1705740639442,-292.49167064,0.00024161,4]
[312281039,1705740639450,-150.0,0.00024163,4]
[312281041,1705740639457,-150.0,0.00024171,4]
[312281042,1705740639465,-150.0,0.00024171,4]
[312281044,1705740639471,-165.61,0.00024183,2]
[312281046,1705740639479,-292.49167064,0.00024186,4]
[312281048,1705740639486,-150.0,0.00024189,4]
[312281049,1705740639493,-150.0,0.00024193,4]
[312281051,1705740639502,-250.0,0.000242,2]
[312281053,1705740639511,-150.0,0.00024201,4]
[312281055,1705740639519,-292.49167064,0.00024212,4]
[312281057,1705740639528,-292.49167064,0.00024237,4]
[312281059,1705740639537,-150.0,0.00024239,4]
[312281061,1705740639546,-292.49167064,0.00024263,4]
[312281063,1705740639555,-150.0,0.00024272,4]
[312281064,1705740639564,-150.0,0.00024276,4]
[312281066,1705740639574,-150.0,0.00024279,4]
[312281068,1705740639583,-292.49167064,0.00024288,4]
[312281070,1705740639593,-150.0,0.00024298,2]
[312281072,1705740639601,-2906.0,0.000243,2]
[312281073,1705740639611,-27058.0,0.000243,2]
[312281075,1705740639620,-150.0,0.00024302,4]
[312281077,1705740639629,-292.49167064,0.00024313,4]
[312281079,1705740639638,-150.0,0.00024314,4]
[312281081,1705740639647,-165.61,0.0002433,2]
[312281083,1705740639656,-292.49167064,0.00024339,4]
[312281084,1705740639665,-150.0,0.00024339,4]
[312281086,1705740639674,-150.0,0.00024339,4]
[312281088,1705740639684,-150.0,0.00024351,4]
[312281090,1705740639693,-292.49167064,0.00024364,4]
[312281092,1705740639702,-150.0,0.00024369,4]
[312281094,1705740639711,-150.0,0.00024372,4]
[312281096,1705740639720,-150.0,0.00024389,4]
[312281098,1705740639729,-292.49167064,0.0002439,4]
[312281100,1705740639738,-1822.59366969,0.00024408,2]
[312281102,1705740639747,-150.0,0.00024412,4]
[312281103,1705740639756,-292.49167064,0.00024415,4]
[312281104,1705740639765,-150.0,0.00024426,4]
[312281105,1705740639774,-292.49167064,0.00024441,4]
[312281106,1705740639783,-263.83026301,0.00024457,2]
[312281107,1705740639792,-161.81,0.00024457,2]
[312281108,1705740639801,-150.0,0.00024459,4]
[312281109,1705740639811,-200.0,0.0002446,2]
[312281110,1705740639819,-800.0,0.0002446,2]
[312281111,1705740639829,-200.0,0.0002446,2]
[312281112,1705740639838,-162.58742783,0.00024463,2]
[312281113,1705740639847,-150.0,0.00024464,4]
[312281114,1705740639856,-292.49167064,0.00024466,4]
[312281115,1705740639865,-150.0,0.00024473,4]
[312281116,1705740639874,-165.61,0.00024477,2]
[312281117,1705740639883,-292.49167064,0.00024491,4]
[312281118,1705740639892,-12303.42922454,0.000245,2]
[312281119,1705740639902,-150.0,0.00024502,4]
[312281120,1705740639910,-150.0,0.00024507,4]
[312281122,1705740639920,-263.83026301,0.00024507,2]
[312281124,1705740639929,-292.49167064,0.00024517,4]
[312281126,1705740639938,-150.0,0.00024521,4]
[312281128,1705740639947,-150.0,0.00024539,4]
[312281130,1705740639956,-292.49167064,0.00024542,4]
[312281132,1705740639965,-169.74,0.00024546,10]
[312281134,1705740639974,-150.0,0.00024549,4]
[312281136,1705740639983,-2228.2095,0.00024555,2]
[312281138,1705740639992,-500.0,0.00024557,2]
[312281140,1705740640001,-47405.32554695,0.00024557,2]
[312281142,1705740640010,-151.88694313,0.00024557,2]
[312281144,1705740640019,-263.83026301,0.00024557,2]
[312281146,1705740640028,-167.20488361,0.00024559,2]
[312281148,1705740640042,-212.395395,0.00024559,2]
[312281150,1705740640051,-595.61591655,0.00024559,2]
[312281152,1705740640060,-5647.23990816,0.00024559,2]
[312281154,1705740640070,-1011.74344366,0.00024559,2]
[312281156,1705740640080,-292.49167064,0.00024568,4]
[312281158,1705740640089,-150.0,0.00024574,4]
[312281160,1705740640098,-150.0,0.00024577,4]
[312281162,1705740640108,-292.49167064,0.00024593,4]
[312281164,1705740640118,-2000.0,0.000246,2]
[312281166,1705740640127,-150.0,0.00024614,4]
[312281168,1705740640136,-535.67,0.00024614,2]
[312281170,1705740640145,-292.49167064,0.00024619,4]
[312281172,1705740640154,-150.0,0.00024619,4]
[312281174,1705740640163,-165.61,0.00024624,2]
[312281176,1705740640172,-150.0,0.00024631,4]
[312281178,1705740640181,-150.0,0.00024639,4]
[312281180,1705740640191,-292.49167064,0.00024644,4]
[312281182,1705740640200,-150.0,0.00024652,4]
[312281184,1705740640210,-578.6341149,0.00024652,2]
[312281186,1705740640219,-42008.2534301,0.00024652,2]
[312281188,1705740640229,-3353.0377336,0.00024652,2]
[312281190,1705740640238,-3384.2484658,0.00024652,2]
[312281192,1705740640247,-51513.469896,0.00024652,2]
[312281194,1705740640257,-264.85621166,0.00024653,2]
[312281196,1705740640265,-207.82039875,0.00024653,2]
[312281198,1705740640275,-251.14364129,0.00024653,2]
[312281200,1705740640284,-907.34510248,0.00024653,2]
[312281202,1705740640293,-193.83342457,0.00024653,2]
[312281204,1705740640303,-437.38043808,0.00024653,2]
[312281206,1705740640312,-4503.45141954,0.00024654,2]
[312281209,1705740640321,-220.99406538,0.00024654,2]
[312281211,1705740640330,-190.36448265,0.00024654,2]
[312281213,1705740640339,-246.50580772,0.00024654,2]
[312281215,1705740640348,-842.51048405,0.00024654,2]
[312281217,1705740640357,-450.27844173,0.00024654,2]
[312281219,1705740640366,-129364.52515324,0.00024655,2]
[312281221,1705740640376,-3655.90160902,0.00024655,2]
[312281223,1705740640385,-542.73763246,0.00024655,2]
[312281225,1705740640394,-417.97849528,0.00024655,2]
[312281227,1705740640402,-282.88521942,0.00024655,2]
[312281229,1705740640411,-273.30880852,0.00024655,2]
[312281231,1705740640420,-350.62507909,0.00024655,2]
[312281233,1705740640430,-7811.91310678,0.00024655,2]
[312281235,1705740640439,-628.27,0.00024655,2]
[312281237,1705740640448,-628.27,0.00024655,2]
[312281239,1705740640457,-628.27,0.00024655,2]
[312281241,1705740640466,-628.27,0.00024655,2]
[312281243,1705740640475,-628.27,0.00024655,2]
[312281245,1705740640484,-628.27,0.00024655,2]
[312281247,1705740640493,-628.27,0.00024655,2]
[312281249,1705740640503,-628.27,0.00024655,2]
[312281251,1705740640512,-628.27,0.00024655,2]
[312281253,1705740640521,-628.27,0.00024655,2]
[312281255,1705740640530,-628.27,0.00024655,2]
[312281257,1705740640540,-628.27,0.00024655,2]
[312281259,1705740640549,-628.27,0.00024655,2]
[312281261,1705740640558,-628.27,0.00024655,2]
[312281263,1705740640567,-628.27,0.00024655,2]
[312281265,1705740640576,-628.27,0.00024655,2]
[312281267,1705740640585,-628.27,0.00024655,2]
[312281269,1705740640594,-628.27,0.00024655,2]
[312281271,1705740640603,-628.27,0.00024655,2]
[312281273,1705740640612,-628.27,0.00024655,2]
[312281275,1705740640622,-628.27,0.00024655,2]
[312281277,1705740640631,-628.27,0.00024655,2]
[312281279,1705740640641,-628.27,0.00024655,2]
[312281281,1705740640651,-628.48,0.00024655,2]
[312281283,1705740640660,-165.419509,0.00024655,7]
[312281285,1705740640669,-161.573359,0.00024655,7]
[312281287,1705740640680,-151.0,0.00024655,7]
[312281289,1705740640688,-179.439877,0.00024655,7]
[312281291,1705740640697,-151.0,0.00024655,7]
[312281293,1705740640706,-151.0,0.00024655,7]
[312281295,1705740640716,-151.0,0.00024655,7]
[312281297,1705740640725,-602.3464926,0.00024656,2]
[312281299,1705740640735,-3296.21810704,0.00024656,2]
[312281301,1705740640743,-828.0,0.00024657,2]
[312281303,1705740640753,-151.0,0.00024657,7]
[312281305,1705740640762,-287.260409,0.00024657,7]
[312281307,1705740640771,-151.0,0.00024657,7]
[312281309,1705740640779,-166.282587,0.00024657,7]
[312281311,1705740640788,-182.272611,0.00024657,7]
[312281313,1705740640798,-169.345562,0.00024657,7]
[312281315,1705740640807,-153.945987,0.00024657,7]
[312281317,1705740640815,-502.80463318,0.00024657,2]
[312281319,1705740640824,-503.17179292,0.00024657,2]
[312281321,1705740640834,-618.44390058,0.00024657,2]
[312281323,1705740640844,-500.0,0.00024657,2]
[312281325,1705740640853,-500.0,0.00024657,2]
[312281327,1705740640862,-501.27428261,0.00024657,2]
[312281329,1705740640872,-605.4282524,0.00024657,2]
[312281331,1705740640881,-503.00017274,0.00024657,2]
[312281333,1705740640889,-264.86024757,0.00024657,2]
[312281335,1705740640899,-500.0,0.00024657,2]
[312281337,1705740640909,-500.0,0.00024657,2]
[312281339,1705740640919,-500.0,0.00024657,2]
[312281341,1705740640928,-500.0,0.00024657,2]
[312281343,1705740640937,-1000.47735796,0.00024657,2]
[312281345,1705740640947,-509.35576475,0.00024657,2]
[312281347,1705740640957,-453.59281525,0.00024657,2]
[312281349,1705740640966,-500.0,0.00024657,2]
[312281351,1705740640976,-500.0,0.00024657,2]
[312281353,1705740640984,-503.1219529,0.00024657,2]
[312281355,1705740640993,-500.0,0.00024657,2]
[312281357,1705740641002,-501.14009322,0.00024657,2]
[312281359,1705740641011,-500.0,0.00024657,2]
[312281361,1705740641020,-413.35625278,0.00024657,2]
[312281363,1705740641030,-500.0,0.00024657,2]
[312281365,1705740641042,-500.0,0.00024657,2]
[312281367,1705740641051,-500.0,0.00024657,2]
[312281369,1705740641060,-500.0,0.00024657,2]
[312281371,1705740641070,-500.0,0.00024657,2]
[312281373,1705740641079,-500.0,0.00024657,2]
[312281375,1705740641088,-500.0,0.00024657,2]
[312281377,1705740641096,-503.08781906,0.00024657,2]